fUST/lending_fUST_20250918
["ID","MTS","AMOUNT","RATE_DAILY","PERIOD"]
[385947353,1758145848334,-152.56,0.00028458,15]
[385947355,1758145848343,-603.65324572,0.00028459,3]
[385947357,1758145848354,-500.0,0.00028459,2]
[385947359,1758145848364,-960.22,0.00028459,3]
[385947370,1758145848451,-561.42,0.00028459,3]
[385947372,1758145848460,-492.66,0.0002846,3]
[385947374,1758145848469,-1768.55,0.0002846,3]
[385947376,1758145848478,-775.83,0.00028462,3]
[385947378,1758145848488,-500.0,0.00028473,2]
[385947380,1758145848497,-700.0,0.00028478,2]
[385947381,1758145848507,-500.0,0.00028481,2]
[385947384,1758145848516,-500.1922232,0.00028493,2]
[385947385,1758145848527,-500.0,0.00028512,2]
[385947387,1758145848537,-500.0,0.00028544,2]
[385947389,1758145848546,-168.0,0.00028557,2]
[385947392,1758145848555,-500.0,0.00028581,2]
[385947394,1758145848564,-500.0,0.00028583,2]
[385947396,1758145848574,-151.0,0.00028595,6]
[385947397,1758145848583,-1246.412471,0.000286,5]
[385947400,1758145848593,-500.0,0.00028603,2]
[385947402,1758145848602,-1000.0,0.0002862,5]
[385947404,1758145848611,-1000.0,0.0002864,5]
[385947405,1758145848623,-1000.0,0.0002866,5]
[385947407,1758145848633,-500.0,0.00028674,2]
[385947409,1758145848642,-1000.0,0.0002868,5]
[385947411,1758145848655,-1154.309746,0.0002868,5]
[385947413,1758145848665,-1000.0,0.000287,5]
[385947415,1758145848675,-1000.0,0.000287,5]
[385947417,1758145848685,-4000.0,0.00028708,5]
[385947419,1758145848695,-168.0,0.0002873,2]
[385947421,1758145848705,-741.46,0.00028732,3]
[385947424,1758145848716,-550.17,0.00028732,3]
[385947426,1758145848725,-960.22,0.00028733,3]
[385947428,1758145848736,-561.42,0.00028733,3]
[385947430,1758145848746,-492.66,0.00028734,3]
[385947431,1758145848755,-1768.55,0.00028734,3]
[385947433,1758145848765,-775.83,0.00028736,3]
[385947435,1758145848774,-700.0,0.00028796,2]
[385947438,1758145848784,-500.0,0.00028805,2]
[385947439,1758145848793,-500.0,0.00028806,2]
[385947441,1758145848802,-22178.4376505,0.00028844,2]
[385947443,1758145848812,-700.0,0.00028862,2]
[385947445,1758145848821,-700.0,0.00028872,2]
[385947447,1758145848830,-700.0,0.00028881,2]
[385947449,1758145848840,-168.0,0.00028881,2]
[385947451,1758145848849,-168.0,0.00028944,2]
[385947453,1758145848858,-500.0,0.00028961,2]
[385947455,1758145848867,-150.0,0.00028973,2]
[385947457,1758145848876,-700.0,0.00028983,2]
[385947459,1758145848888,-1060.0,0.00028996,2]
[385947461,1758145848898,-877.62746439,0.00029,2]
[385947463,1758145848907,-209.0,0.00029,2]
[385947465,1758145848917,-160.0,0.00029,10]
[385947467,1758145848927,-531.53982319,0.00029,10]
[385947469,1758145848937,-741.46,0.00029006,3]
[385947471,1758145848947,-550.17,0.00029006,3]
[385947473,1758145848957,-960.22,0.00029007,3]
[385947475,1758145848966,-561.42,0.00029007,3]
[385947477,1758145848976,-492.66,0.00029008,3]
[385947479,1758145848986,-1768.55,0.00029008,3]
[385947481,1758145848995,-775.83,0.0002901,3]
[385947483,1758145849004,-170.28217381,0.00029041,120]
[385947485,1758145849013,-1894.1302608,0.00029055,2]
[385947487,1758145849022,-168.0,0.0002906,2]
[385947489,1758145849031,-700.0,0.0002907,2]
[385947491,1758145849041,-168.0,0.00029077,2]
[385947493,1758145849051,-168.0,0.00029079,2]
[385947495,1758145849060,-600.0,0.00029084,2]
[385947497,1758145849069,-500.0,0.00029098,2]
[385947499,1758145849079,-620.99,0.000291,7]
[385947501,1758145849088,-700.0,0.00029135,2]
[385947503,1758145849097,-500.0,0.0002915,2]
[385947505,1758145849106,-151.0,0.00029162,7]
[385947506,1758145849116,-700.0,0.00029191,2]
[385947509,1758145849125,-600.0,0.000292,7]
[385947510,1758145849134,-500.0,0.00029216,2]
[385947512,1758145849144,-500.0,0.00029238,2]
[385947514,1758145849153,-500.0,0.00029242,2]
[385947516,1758145849163,-4500.0,0.00029256,5]
[385947518,1758145849173,-500.0,0.00029269,2]
[385947520,1758145849183,-700.0,0.00029276,2]
[385947522,1758145849192,-741.46,0.0002928,3]
[385947524,1758145849201,-550.17,0.0002928,3]
[385947526,1758145849211,-960.22,0.00029281,3]
[385947528,1758145849221,-561.42,0.00029281,3]
[385947530,1758145849231,-492.66,0.00029282,3]
[385947532,1758145849240,-1768.55,0.00029282,3]
[385947534,1758145849249,-775.83,0.00029284,3]
[385947536,1758145849259,-500.0,0.00029305,2]
[385947538,1758145849269,-500.0,0.00029317,2]
[385947540,1758145849278,-500.0,0.00029325,2]
[385947542,1758145849288,-700.0,0.00029329,2]
[385947544,1758145849297,-2778.28,0.00029353,6]
[385947546,1758145849307,-168.0,0.00029358,2]
[385947548,1758145849316,-700.0,0.00029359,2]
[385947550,1758145849325,-200.0,0.00029371,10]
[385947552,1758145849334,-898.93599219,0.00029387,2]
[385947554,1758145849344,-151.0,0.000294,15]
[385947556,1758145849353,-700.0,0.00029414,2]
[385947558,1758145849363,-168.0,0.00029428,2]
[385947560,1758145849371,-500.0,0.00029436,2]
[385947562,1758145849381,-500.0,0.00029439,2]
[385947564,1758145849390,-700.0,0.00029495,2]
[385947566,1758145849399,-1556.841593,0.000295,2]
[385947568,1758145849408,-700.0,0.00029511,2]
[385947570,1758145849418,-1160.0,0.00029544,2]
[385947572,1758145849426,-700.0,0.0002955,2]
[385947574,1758145849435,-741.68755106,0.00029553,3]
[385947575,1758145849446,-550.2377674,0.00029553,3]
[385947577,1758145849455,-960.44526474,0.00029555,3]
[385947579,1758145849464,-561.52866488,0.00029555,3]
[385947581,1758145849474,-492.66,0.00029556,3]
[385947583,1758145849483,-1768.55,0.00029556,3]
[385947585,1758145849493,-164.89100626,0.00029557,10]
[385947587,1758145849503,-775.83,0.00029558,3]
[385947590,1758145849513,-450.0,0.00029589,8]
[385947591,1758145849522,-500.0,0.0002959,2]
[385947593,1758145849532,-500.0,0.00029659,2]
[385947595,1758145849541,-500.0,0.0002967,2]
[385947598,1758145849551,-700.0,0.00029678,2]
[385947600,1758145849560,-700.0,0.00029687,2]
[385947602,1758145849569,-700.0,0.0002969,2]
[385947604,1758145849579,-500.0,0.00029699,2]
[385947606,1758145849588,-500.0,0.00029718,2]
[385947608,1758145849598,-823.0,0.0002972,2]
[385947610,1758145849607,-151.0,0.00029729,7]
[385947612,1758145849617,-4948.6783447,0.00029764,2]
[385947614,1758145849631,-700.0,0.0002979,2]
[385947616,1758145849641,-2509.15082259,0.00029804,5]
[385947618,1758145849650,-700.0,0.00029817,2]
[385947620,1758145849660,-700.0,0.00029824,2]
[385947622,1758145849670,-995.0,0.00029827,2]
[385947624,1758145849679,-492.70561507,0.0002983,3]
[385947626,1758145849688,-1768.65586925,0.0002983,3]
[385947628,1758145849698,-775.83,0.00029832,3]
[385947630,1758145849708,-69108.84581002,0.0002985,60]
[385947632,1758145849717,-168.0,0.00029867,2]
[385947634,1758145849726,-500.0,0.00029889,2]
[385947636,1758145849736,-500.0,0.00029923,2]
[385947638,1758145849746,-500.0,0.00029955,2]
[385947640,1758145849755,-500.0,0.00029984,2]
[385947642,1758145849764,-500.0,0.00029984,2]
[385947644,1758145849773,-700.0,0.00029997,2]
[385947645,1758145849781,-165.46,0.0003,5]
[385947647,1758145849790,-191.606,0.0003,2]
[385947649,1758145849799,-5468.76,0.0003,7]
[385947651,1758145849808,-159.6725,0.0003,2]
[385947653,1758145849818,-886.516963,0.0003,2]
[385947661,1758145849876,-613.483037,0.0003,2]
[385947663,1758145849886,-4000.0,0.0003,4]
[385947665,1758145849896,-168.0,0.00030018,2]
[385947667,1758145849905,-600.0,0.00030022,7]
[385947669,1758145849914,-422.6375884,0.00030022,2]
[385947671,1758145849923,-168.0,0.00030045,2]
[385947672,1758145849934,-700.0,0.00030069,7]
[385947674,1758145849943,-150000.0,0.00030082,2]
[385947677,1758145849954,-106740.10679801,0.00030082,2]
[385947679,1758145849963,-173.0,0.00030083,2]
[385947680,1758145849972,-1260.0,0.00030092,2]
[385947682,1758145849981,-284.50526012,0.0003013,2]
[385947684,1758145849990,-160.0,0.00030148,5]
[385947686,1758145850000,-253.23475905,0.00030148,5]
[385947689,1758145850010,-160.0,0.00030148,3]
[385947691,1758145850019,-160.0,0.00030148,5]
[385947692,1758145850030,-700.0,0.00030177,7]
[385947694,1758145850039,-500.0,0.00030219,7]
[385947696,1758145850048,-504.81899456,0.00030228,2]
[385947698,1758145850057,-500.0,0.00030256,7]
[385947700,1758145850067,-500.0,0.00030258,7]
[385947702,1758145850076,-3112.0,0.00030261,2]
[385947704,1758145850085,-700.0,0.0003027,7]
[385947706,1758145850094,-512.09362051,0.00030271,7]
[385947708,1758145850104,-700.0,0.00030273,7]
[385947710,1758145850113,-500.0,0.00030296,5]
[385947712,1758145850123,-629.47233631,0.00030296,5]
[385947714,1758145850132,-151.0,0.00030296,30]
[385947724,1758145850214,-2034.55,0.000303,7]
[385947726,1758145850223,-1122.47,0.000303,7]
[385947728,1758145850232,-500.0,0.0003031,30]
[385947730,1758145850242,-500.0,0.0003031,5]
[385947732,1758145850253,-500.0,0.0003031,5]
[385947734,1758145850262,-553.99767298,0.00030315,7]
[385947736,1758145850271,-150.0,0.00030328,30]
[385947738,1758145850280,-500.0,0.00030334,30]
[385947740,1758145850289,-500.0,0.00030334,10]
[385947742,1758145850299,-500.0,0.00030334,15]
[385947744,1758145850308,-500.0,0.00030334,15]
[385947746,1758145850317,-500.0,0.00030334,10]
[385947748,1758145850326,-500.0,0.00030334,10]
[385947750,1758145850335,-500.0,0.00030334,10]
[385947752,1758145850344,-500.0,0.00030334,7]
[385947754,1758145850354,-500.0,0.00030334,7]
[385947756,1758145850363,-455.61,0.00030334,7]
[385947758,1758145850372,-906.01990459,0.00030335,7]
[385947760,1758145850381,-59117.05236962,0.00030346,2]
[385947762,1758145850390,-225.03205203,0.00030346,15]
[385947764,1758145850399,-300.0,0.00030346,2]
[385947766,1758145850408,-3879.02624511,0.00030346,2]
[385947768,1758145850418,-809.18903258,0.00030346,2]
[385947770,1758145850427,-258.03727427,0.00030346,2]
[385947772,1758145850436,-296.68922026,0.00030346,2]
[385947774,1758145850446,-326.80100526,0.00030346,2]
[385947776,1758145850455,-291.66209863,0.00030346,2]
[385947778,1758145850464,-194.38851454,0.00030346,12]
[385947780,1758145850474,-51704.40438258,0.00030346,2]
[385947782,1758145850483,-636.83201365,0.00030346,2]
[385947784,1758145850491,-1360.96636431,0.00030346,2]
[385947786,1758145850501,-156.51931606,0.00030346,2]
[385947788,1758145850510,-49021.07758288,0.00030346,2]
[385947790,1758145850521,-6289.84824333,0.00030346,2]
[385947792,1758145850530,-157.52857042,0.00030346,2]
[385947794,1758145850539,-1715.81006823,0.00030346,2]
[385947796,1758145850548,-2074.57988061,0.00030346,2]
[385947798,1758145850557,-1589.0,0.00030346,3]
[385947800,1758145850566,-507.26202901,0.00030346,2]
[385947801,1758145850576,-179.1846765,0.00030346,2]
[385947803,1758145850585,-467.5557257,0.00030346,2]
[385947805,1758145850595,-907.48611247,0.00030346,14]
[385947808,1758145850604,-30434.63961879,0.00030346,2]
[385947810,1758145850614,-189.04894212,0.00030346,2]
[385947811,1758145850626,-1395.98329673,0.00030346,2]
[385947813,1758145850635,-5890.80873131,0.00030346,2]
[385947815,1758145850644,-10678.150029,0.00030346,2]
[385947817,1758145850653,-650.77645066,0.00030346,2]
[385947819,1758145850664,-903.91347109,0.00030346,2]
[385947820,1758145850673,-1536.84663667,0.00030346,14]
[385947821,1758145850682,-2920.0,0.00030346,2]
[385947822,1758145850691,-163.19867114,0.00030346,2]
[385947823,1758145850702,-201.3287148,0.00030346,2]
[385947824,1758145850712,-2347.09460458,0.00030346,2]
[385947826,1758145850721,-150.24122673,0.00030346,2]
[385947828,1758145850730,-1004.7323855,0.00030346,14]
[385947830,1758145850739,-100198.1570336,0.00030346,2]
[385947831,1758145850749,-258.36532182,0.00030346,2]
[385947834,1758145850758,-3764.01241951,0.00030346,2]
[385947835,1758145850767,-239.81154299,0.00030346,10]
[385947838,1758145850777,-1092.89260761,0.00030346,10]
[385947840,1758145850786,-200.0,0.00030346,10]
[385947842,1758145850795,-10566.76745006,0.00030346,7]
[385947843,1758145850804,-498.0,0.00030346,7]
[385947846,1758145850813,-983.5965187,0.00030346,2]
[385947848,1758145850822,-153.99863688,0.00030346,7]
[385947849,1758145850831,-810.90442392,0.00030346,15]
[385947852,1758145850841,-384.80714942,0.00030346,2]
[385947854,1758145850850,-326.14922615,0.00030346,7]
[385947856,1758145850859,-1014.9818636,0.00030346,10]
[385947858,1758145850869,-3145.96351561,0.00030346,2]
[385947860,1758145850877,-2442.15892483,0.00030346,2]
[385947861,1758145850887,-30086.42122336,0.00030346,15]
[385947864,1758145850896,-2511.23605381,0.00030346,7]
[385947866,1758145850906,-158.82943701,0.00030346,2]
[385947868,1758145850915,-6938.0184019,0.00030346,2]
[385947870,1758145850924,-104500.0,0.00030346,7]
[385947872,1758145850933,-1951.24343256,0.00030346,2]
[385947874,1758145850942,-1516.95967537,0.00030346,15]
[385947876,1758145850952,-7733.85765493,0.00030346,7]
[385947878,1758145850961,-7223.78914367,0.00030346,7]
[385947880,1758145850970,-250.07975607,0.00030346,2]
[385947882,1758145850979,-3184.50286557,0.00030346,2]
[385947884,1758145850988,-8000.0,0.00030346,10]
[385947886,1758145850998,-105970.44799435,0.00030346,7]
[385947888,1758145851007,-217.56131741,0.00030346,30]
[385947890,1758145851017,-5031.49744081,0.00030346,2]
[385947892,1758145851026,-157.8,0.00030346,2]
[385947894,1758145851035,-10211.28738278,0.00030346,2]
[385947896,1758145851044,-270413.93264056,0.00030346,20]
[385947913,1758145851190,-480.0,0.00024075,3]
[385947915,1758145851199,-480.0,0.00024349,3]
[385947917,1758145851208,-480.0,0.00024623,3]
[385947919,1758145851217,-480.0,0.00024897,3]
[385947921,1758145851226,-480.0,0.00025171,3]
[385947923,1758145851236,-480.0,0.00025445,3]
[385947925,1758145851245,-480.0,0.00025719,3]
[385947927,1758145851254,-480.0,0.00025719,3]
[385947929,1758145851263,-343.17011758,0.00025993,3]
[385947931,1758145851272,-480.0,0.00025993,3]
[385947933,1758145851281,-411.18,0.00026267,3]
[385947935,1758145851290,-3449.48024064,0.00030346,20]
[385947954,1758145851465,-480.0,0.00023252,3]
[385947956,1758145851475,-480.0,0.00023526,3]
[385947958,1758145851484,-500.0,0.00023799,2]
[385947961,1758145851493,-500.0,0.00023799,2]
[385947962,1758145851503,-300.0,0.00023799,2]
[385947964,1758145851512,-500.0,0.00023799,2]
[385947966,1758145851521,-589.52,0.000238,3]
[385947968,1758145851531,-4056.655,0.00030346,20]
[385947971,1758145851542,-9795.56837991,0.00030346,20]
[385947973,1758145851553,-63600.28,0.00030346,20]
[385947975,1758145851564,-17184.01918743,0.00030346,20]
[385947977,1758145851576,-3000.0,0.00030346,20]
[385950541,1758146048051,212.840238,0.00022505,2]
[385950544,1758146151588,2748.3929753,0.00022505,2]
[385950545,1758146705475,5000.0,0.0002316,2]
[385950546,1758146721175,5000.009,0.00028,30]
[385950547,1758146868874,202.32174384,0.000218,2]
[385950550,1758146989412,-154.93162888,0.000308,120]
[385950551,1758146989447,-160.53,0.00035,120]
[385950552,1758146989475,-217.90857035,0.00035,120]
[385950553,1758146989504,-2430.99,0.00035398,120]
[385950554,1758146989533,-20442.30703118,0.00035773,120]
[385950555,1758146989590,-26371.02742964,0.00035773,120]
[385950556,1758146989606,-154.93162888,0.00035773,120]
[385950557,1758146989620,-160.53,0.00035773,120]
[385950558,1758146989634,-217.90857035,0.00035773,120]
[385950559,1758146989648,-2430.99,0.00035773,120]
[385950560,1758146989661,-9911.90000001,0.00035773,120]
[385950561,1758146989775,-1726.79238572,0.00035773,120]
[385950562,1758147020695,212.840239,0.00022497,2]
[385950564,1758147032325,-300.0,0.00023251,2]
[385950565,1758147032335,-1200.0,0.00023251,2]
[385950566,1758147032344,-233.69,0.00023252,3]
[385950567,1758147032354,-480.0,0.00023252,3]
[385950568,1758147032363,-480.0,0.00023252,3]
[385950569,1758147032372,-406.66475829,0.00023252,3]
[385950570,1758147035246,200.0,0.000295,120]
[385950571,1758147035587,200.0,0.000312,120]
[385950572,1758147035873,200.0,0.000329,120]
[385950573,1758147036259,200.0,0.000346,120]
[385950579,1758147038009,-73.33524171,0.00023252,3]
[385950580,1758147038020,-3766.42,0.00023252,3]
[385950581,1758147038029,-480.0,0.00023252,3]
[385950582,1758147038039,-480.0,0.00023252,3]
[385950583,1758147038048,-480.0,0.00023253,3]
[385950584,1758147038058,-480.0,0.00023255,3]
[385950585,1758147038068,-480.0,0.00023526,3]
[385950586,1758147038079,-480.0,0.00023526,3]
[385950587,1758147038088,-480.0,0.00023526,3]
[385950588,1758147038099,-480.0,0.00023526,3]
[385950589,1758147038108,-3766.42,0.00023526,3]
[385950590,1758147038117,-480.0,0.00023526,3]
[385950591,1758147038127,-480.0,0.00023526,3]
[385950592,1758147038136,-480.0,0.00023526,3]
[385950593,1758147038145,-535.73,0.00023526,3]
[385950594,1758147038154,-480.0,0.00023526,3]
[385950595,1758147038164,-480.0,0.00023526,3]
[385950596,1758147038173,-480.0,0.00023526,3]
[385950598,1758147038182,-480.0,0.00023527,3]
[385950600,1758147038192,-480.0,0.00023527,3]
[385950602,1758147038201,-480.0,0.00023527,3]
[385950604,1758147038211,-480.0,0.00023527,3]
[385950606,1758147038220,-490.72,0.00023527,3]
[385950608,1758147038230,-480.0,0.00023527,3]
[385950609,1758147038239,-480.0,0.00023527,3]
[385950610,1758147038248,-847.79063332,0.00023527,3]
[385950611,1758147038257,-480.0,0.00023527,3]
[385950612,1758147038267,-480.0,0.00023527,3]
[385950614,1758147038276,-480.0,0.00023527,3]
[385950616,1758147038285,-480.0,0.00023527,3]
[385950618,1758147038294,-480.0,0.00023527,3]
[385950620,1758147038303,-157.01,0.00023527,3]
[385950622,1758147038313,-480.0,0.00023527,3]
[385950624,1758147038322,-480.0,0.00023527,3]
[385950626,1758147038331,-480.0,0.00023527,3]
[385950628,1758147038340,-480.0,0.00023527,3]
[385950630,1758147038349,-480.0,0.00023527,3]
[385950631,1758147038359,-254.73,0.00023527,3]
[385950632,1758147038367,-194.36271838,0.00023527,3]
[385950633,1758147038376,-480.0,0.00023527,3]
[385950634,1758147038386,-480.0,0.00023527,3]
[385950635,1758147038395,-480.0,0.00023527,3]
[385950636,1758147038404,-480.0,0.00023527,3]
[385950637,1758147038414,-480.0,0.00023529,3]
[385950638,1758147038423,-26023.51708207,0.00023646,2]
[385950639,1758147038433,-160.0,0.000238,3]
[385950640,1758147038443,-480.0,0.000238,3]
[385950641,1758147038452,-480.0,0.000238,3]
[385950642,1758147038461,-3766.42,0.000238,3]
[385950643,1758147038470,-382.65,0.000238,3]
[385950644,1758147038479,-168.47,0.000238,3]
[385950645,1758147038489,-480.0,0.00023801,3]
[385950646,1758147038499,-480.0,0.00023801,3]
[385950647,1758147038508,-619.83,0.00023801,3]
[385950648,1758147038518,-389.29,0.00023801,3]
[385950649,1758147038528,-480.0,0.00023801,3]
[385950650,1758147038537,-150.18,0.00023801,3]
[385950651,1758147038546,-480.0,0.00023801,3]
[385950652,1758147038556,-480.0,0.00023801,3]
[385950653,1758147038565,-225.18,0.00023803,3]
[385950654,1758147038574,-417.15472785,0.00024,3]
[385950655,1758147038584,-480.0,0.00024074,3]
[385950656,1758147038594,-480.0,0.00024074,3]
[385950657,1758147038603,-3766.42,0.00024074,3]
[385950658,1758147038612,-480.0,0.00024075,3]
[385950659,1758147038622,-480.0,0.00024075,3]
[385950660,1758147038632,-480.0,0.00024075,3]
[385950661,1758147038641,-310.15389031,0.00024284,2]
[385950662,1758147038651,-2269.93908898,0.00024339,2]
[385950663,1758147038660,-2269.93908894,0.00024348,2]
[385950664,1758147038670,-480.0,0.00024348,3]
[385950665,1758147038679,-480.0,0.00024348,3]
[385950666,1758147038688,-3766.42,0.00024348,3]
[385950667,1758147038697,-480.0,0.00024349,3]
[385950668,1758147038706,-480.0,0.00024349,3]
[385950669,1758147038716,-180.77,0.00024349,3]
[385950670,1758147038725,-2269.93908894,0.00024356,2]
[385950671,1758147038734,-160.0,0.00024364,2]
[385950672,1758147038744,-233.34517135,0.00024364,2]
[385950673,1758147038753,-2269.93908894,0.00024365,2]
[385950674,1758147038762,-2269.93908894,0.00024373,2]
[385950675,1758147038771,-174.59529716,0.00024373,2]
[385950676,1758147038780,-500.0,0.00024438,2]
[385950677,1758147038790,-500.0,0.00024438,2]
[385950678,1758147038799,-500.0,0.00024438,2]
[385950679,1758147038808,-421.84808904,0.00024438,2]
[385950680,1758147038817,-157.85800082,0.00024439,2]
[385950681,1758147038826,-186.74619559,0.00024439,2]
[385950682,1758147038836,-476.15324704,0.00024439,2]
[385950683,1758147038845,-2430.99,0.00024439,2]
[385950684,1758147038853,-1000000.0,0.0002444,2]
[385950685,1758147038862,-500.0,0.00024473,2]
[385950686,1758147038871,-501.27550109,0.00024473,2]
[385950687,1758147038880,-500.0,0.00024473,2]
[385950688,1758147038889,-500.0,0.00024473,2]
[385950689,1758147038898,-500.0,0.00024473,2]
[385950690,1758147038907,-480.0,0.00024622,3]
[385950691,1758147038917,-480.0,0.00024622,3]
[385950692,1758147038926,-3766.42,0.00024622,3]
[385950693,1758147038935,-480.0,0.00024623,3]
[385950694,1758147038944,-169.59,0.00024623,3]
[385950695,1758147038953,-150.0,0.00024657,2]
[385950696,1758147038962,-12333.40516827,0.00024818,2]
[385950697,1758147038972,-500.0,0.00024861,2]
[385950698,1758147038980,-500.0,0.00024861,2]
[385950699,1758147038990,-500.0,0.00024861,2]
[385950700,1758147038999,-500.0,0.00024861,2]
[385950701,1758147039010,-500.0,0.00024861,2]
[385950702,1758147039020,-596.97055021,0.00024861,2]
[385950703,1758147039030,-250.0,0.00024861,2]
[385950704,1758147039038,-250.0,0.00024861,2]
[385950705,1758147039048,-500.0,0.00024873,2]
[385950706,1758147039057,-500.0,0.00024873,2]
[385950707,1758147039067,-500.81687449,0.00024873,2]
[385950708,1758147039076,-500.0,0.00024873,2]
[385950709,1758147039084,-160.0,0.00024878,2]
[385950710,1758147039093,-160.0,0.00024878,2]
[385950711,1758147039104,-160.0,0.00024878,2]
[385950712,1758147039113,-160.0,0.00024878,2]
[385950713,1758147039122,-160.0,0.00024878,2]
[385950714,1758147039131,-398.18735477,0.00024896,3]
[385950715,1758147039140,-480.0,0.00024896,3]
[385950716,1758147039150,-3766.42,0.00024896,3]
[385950717,1758147039159,-453.4109891,0.00024897,3]
[385950718,1758147039168,-109267.0539198,0.000249,2]
[385950978,1758147043239,-2705.47617019,0.000249,2]
[385950981,1758147043251,-194599.87738464,0.000249,2]
[385951256,1758147046240,-14524.046256,0.000249,2]
[385951257,1758147046252,-11366.34937812,0.000249,2]
[385951258,1758147046263,-20559.18342231,0.000249,2]
[385951259,1758147046275,-46283.53323215,0.000249,2]
[385951260,1758147046286,-6682.52980171,0.000249,2]
[385951261,1758147046297,-223719.54891785,0.000249,2]
[385951278,1758147053493,231.8384158,0.000218,2]
[385951279,1758147091472,200.0,0.00031751,120]
[385951280,1758147140475,151.0,0.00024,120]
[385951281,1758147141879,151.0,0.000271,120]
[385951282,1758147143297,151.0,0.000302,120]
[385951283,1758147144688,151.0,0.000334,120]
[385951284,1758147150708,200.0,0.00030832,120]
[385951285,1758147158280,653.72571105,0.00035,120]
[385951286,1758147197678,2228.41,0.00035398,120]
[385951287,1758147235078,231.94235495,0.000218,2]
[385951293,1758147417897,213.63076924,0.000218,2]
[385951294,1758147433718,2135.56,0.00034649,120]
[385951295,1758147470942,653.72571105,0.00035,120]
[385951296,1758147598323,231.62012368,0.000218,2]
[385951297,1758147603541,179.36732,0.00023006,2]
[385951299,1758147683270,2046.58,0.00034209,120]
[385951301,1758147747500,168.0,0.00025154,120]
[385951302,1758147748866,168.0,0.00026412,120]
[385951303,1758147750224,168.0,0.00027732,120]
[385951304,1758147751711,168.0,0.00029119,120]
[385951305,1758147784523,653.72571105,0.00035,120]
[385951306,1758147785418,231.69161846,0.000218,2]
[385951307,1758147829609,5027.6201861,0.00023036,2]
[385951335,1758147921177,1961.31,0.00034198,120]
[385951338,1758148055398,9441.79990423,0.000219,2]
[385951340,1758148098332,172.974446,0.00022996,2]
[385951341,1758148099162,653.72571105,0.00035,120]
[385951342,1758148116783,4348.56936,0.00028,120]
[385951343,1758148120244,7895.0,0.00028,30]
[385951344,1758148126825,162.49096403,0.0002843,120]
[385951345,1758148173759,1879.58,0.00034189,120]
[385951346,1758148175221,216.05864311,0.000218,2]
[385951347,1758148215902,16429.52426142,0.00035,120]
[385951348,1758148215927,2430.99,0.00035,120]
[385951349,1758148215950,2430.99,0.00035,120]
[385951350,1758148215971,2430.99,0.00035,120]
[385951395,1758148232385,-300.0,0.00023525,2]
[385951397,1758148232394,-613.0,0.00023525,2]
[385951399,1758148232406,-480.0,0.00023526,3]
[385951401,1758148232416,-480.0,0.00023526,3]
[385951404,1758148232425,-480.0,0.00023526,3]
[385951407,1758148232434,-480.0,0.00023526,3]
[385951410,1758148232443,-480.0,0.00023526,3]
[385951412,1758148232452,-480.0,0.00023526,3]
[385951414,1758148232461,-480.0,0.00023526,3]
[385951416,1758148232471,-3557.31,0.00023526,3]
[385951418,1758148232480,-480.0,0.00023526,3]
[385951420,1758148232489,-160.0,0.00023527,3]
[385951422,1758148232499,-480.0,0.00023527,3]